fUST/lending_fUST_20240629
["ID","MTS","AMOUNT","RATE_DAILY","PERIOD"]
[330602160,1719609086376,-1461.16,0.00025205,4]
[330602161,1719609086386,-2850.21,0.00025205,4]
[330602162,1719609086395,-546.35,0.00025205,4]
[330602163,1719609086404,-500.0,0.00025205,4]
[330602164,1719609086413,-600.27,0.00025205,4]
[330602165,1719609086422,-500.0,0.00025205,4]
[330602166,1719609086431,-4987.38,0.00025205,4]
[330602167,1719609086440,-500.0,0.00025205,4]
[330602168,1719609086450,-3352.17,0.00025205,4]
[330602169,1719609086459,-621.88,0.00025205,4]
[330602170,1719609086470,-683.47,0.00025205,4]
[330602171,1719609086480,-1525.02,0.00025205,4]
[330602172,1719609086489,-23476.31,0.00025205,4]
[330602173,1719609086499,-500.0,0.00025205,4]
[330602174,1719609086508,-6462.45,0.00025205,4]
[330602175,1719609086517,-500.0,0.00025205,4]
[330602176,1719609086526,-9156.13,0.00025205,4]
[330602177,1719609086645,-1587.41,0.00025205,4]
[330602178,1719609086656,-500.0,0.00025205,4]
[330602179,1719609086665,-2718.89,0.00025205,4]
[330602180,1719609086675,-301.19058886,0.000253,2]
[330602181,1719609086684,-456.6,0.0002532,3]
[330602182,1719609086693,-444.0,0.00025373,2]
[330602183,1719609086703,-449.0,0.00025373,2]
[330602184,1719609086712,-312.0,0.00025373,2]
[330602185,1719609086724,-321.0,0.00025373,2]
[330602186,1719609086733,-6356.54,0.00025479,4]
[330602187,1719609086742,-500.0,0.00025479,2]
[330602188,1719609086755,-500.0,0.00025479,4]
[330602189,1719609086764,-1053.33,0.00025479,4]
[330602190,1719609086773,-500.0,0.00025479,4]
[330602191,1719609086782,-581.35,0.00025479,4]
[330602192,1719609086791,-500.0,0.00025479,4]
[330602193,1719609086799,-500.0,0.00025479,4]
[330602194,1719609086808,-2317.09,0.00025479,4]
[330602195,1719609086817,-922.96,0.00025479,4]
[330602196,1719609086825,-834.68,0.00025479,4]
[330602197,1719609086834,-500.0,0.00025479,4]
[330602198,1719609086843,-500.0,0.00025479,4]
[330602199,1719609086852,-500.0,0.00025479,4]
[330602200,1719609086861,-803.38,0.00025479,4]
[330602201,1719609086870,-500.0,0.00025479,4]
[330602202,1719609086879,-1513.65,0.00025479,4]
[330602203,1719609086888,-500.0,0.00025479,4]
[330602204,1719609086896,-969.26,0.00025479,4]
[330602205,1719609086905,-1279.12,0.00025479,4]
[330602206,1719609086914,-580.44,0.00025479,4]
[330602207,1719609086923,-750.55,0.00025479,4]
[330602208,1719609086932,-527.85,0.00025479,4]
[330602209,1719609086941,-762.9,0.00025479,4]
[330602210,1719609086950,-500.0,0.00025479,4]
[330602211,1719609086959,-500.0,0.00025479,4]
[330602212,1719609086971,-794.3,0.00025479,4]
[330602213,1719609086979,-500.0,0.00025479,4]
[330602214,1719609086989,-500.0,0.00025479,4]
[330602215,1719609086999,-526.04,0.00025479,4]
[330602216,1719609087009,-819.47,0.00025479,4]
[330602217,1719609087022,-905.98,0.00025479,4]
[330602218,1719609087032,-500.0,0.00025479,4]
[330602219,1719609087042,-500.0,0.00025479,4]
[330602220,1719609087052,-1589.77,0.00025479,4]
[330602221,1719609087063,-1414.16,0.00025479,4]
[330602222,1719609087073,-514.41,0.00025479,4]
[330602223,1719609087083,-500.0,0.00025479,4]
[330602224,1719609087092,-549.62,0.00025479,4]
[330602225,1719609087106,-1020.77,0.00025479,4]
[330602226,1719609087115,-2333.86,0.00025479,4]
[330602227,1719609087125,-718.41,0.00025479,4]
[330602228,1719609087134,-632.14,0.00025479,4]
[330602229,1719609087143,-2254.28,0.00025479,4]
[330602230,1719609087153,-1134.77,0.00025479,4]
[330602231,1719609087162,-500.0,0.00025479,4]
[330602232,1719609087171,-552.34,0.00025479,4]
[330602233,1719609087180,-655.59,0.00025479,4]
[330602234,1719609087190,-500.0,0.00025479,4]
[330602235,1719609087200,-500.0,0.00025479,4]
[330602236,1719609087210,-1584.44,0.00025479,4]
[330602237,1719609087223,-705.63,0.00025479,4]
[330602238,1719609087233,-992.69,0.00025479,4]
[330602239,1719609087247,-963.94,0.00025479,4]
[330602240,1719609087258,-2618.52,0.00025479,4]
[330602241,1719609087268,-775.03,0.00025479,4]
[330602242,1719609087277,-500.0,0.00025479,4]
[330602243,1719609087287,-500.0,0.00025479,4]
[330602244,1719609087296,-1047.09,0.00025479,4]
[330602245,1719609087306,-597.64,0.00025479,4]
[330602246,1719609087315,-500.0,0.00025479,4]
[330602247,1719609087325,-619.46,0.00025479,4]
[330602248,1719609087335,-1602.1,0.00025479,4]
[330602249,1719609087345,-500.0,0.00025479,4]
[330602250,1719609087354,-1252.86,0.00025479,4]
[330602251,1719609087364,-748.7,0.00025479,4]
[330602252,1719609087373,-725.68,0.00025479,4]
[330602253,1719609087383,-500.0,0.00025479,4]
[330602254,1719609087393,-3105.39,0.00025479,4]
[330602255,1719609087402,-500.0,0.00025479,4]
[330602256,1719609087412,-1391.86,0.00025479,4]
[330602257,1719609087421,-500.0,0.00025479,4]
[330602258,1719609087430,-1221.39,0.00025479,4]
[330602259,1719609087439,-598.89,0.00025479,4]
[330602260,1719609087449,-761.97,0.00025479,4]
[330602261,1719609087459,-500.0,0.00025479,4]
[330602262,1719609087469,-1916.95,0.00025479,4]
[330602263,1719609087479,-500.0,0.00025479,4]
[330602264,1719609087488,-911.28,0.00025479,4]
[330602265,1719609087498,-500.0,0.00025479,4]
[330602266,1719609087507,-500.0,0.00025479,4]
[330602267,1719609087517,-1274.5,0.00025479,2]
[330602268,1719609087527,-786.07,0.00025479,4]
[330602269,1719609087538,-3430.95,0.00025479,4]
[330602270,1719609087547,-2096.46,0.00025479,4]
[330602271,1719609087557,-1472.43,0.00025479,4]
[330602272,1719609087566,-500.0,0.00025479,4]
[330602273,1719609087575,-637.29659977,0.00025479,4]
[330602274,1719609087584,-713.1,0.00025479,4]
[330602275,1719609087593,-32522.18,0.00025479,4]
[330602276,1719609087602,-1080.39,0.00025479,4]
[330602277,1719609087611,-515.25171969,0.00025479,4]
[330602278,1719609087620,-2759.26,0.00025479,4]
[330602279,1719609087630,-1561.25,0.00025479,4]
[330602280,1719609087638,-1056.09,0.00025479,4]
[330602281,1719609087648,-626.89,0.00025479,4]
[330602282,1719609087657,-644.23,0.00025479,4]
[330602283,1719609087666,-605.14846867,0.00025479,4]
[330602284,1719609087675,-919.74,0.00025479,4]
[330602285,1719609087684,-229.75171443,0.00025479,4]
[330602286,1719609087693,-526.73,0.00025479,4]
[330602287,1719609087702,-500.0,0.00025479,4]
[330602288,1719609087711,-500.0,0.00025479,4]
[330602289,1719609087721,-900.52,0.00025479,4]
[330602290,1719609087730,-2915.15,0.00025479,4]
[330602291,1719609087739,-1075.26,0.00025479,4]
[330602292,1719609087748,-165.51021383,0.00025479,4]
[330602293,1719609087758,-2606.56,0.00025479,4]
[330602294,1719609087766,-898.0,0.00025479,4]
[330602295,1719609087775,-1017.0,0.00025479,4]
[330602296,1719609087784,-500.0,0.00025479,4]
[330602297,1719609087793,-769.17,0.00025479,4]
[330602298,1719609087802,-724.43,0.00025479,4]
[330602299,1719609087810,-500.0,0.00025479,4]
[330602300,1719609087820,-1811.19,0.00025479,4]
[330602301,1719609087829,-500.0,0.00025479,4]
[330602302,1719609087838,-555.14,0.00025479,4]
[330602303,1719609087846,-745.75,0.00025479,4]
[330602304,1719609087855,-1060.47,0.00025479,4]
[330602305,1719609087864,-1646.45,0.00025479,4]
[330602306,1719609087873,-500.0,0.00025479,4]
[330602307,1719609087882,-561.23,0.00025479,4]
[330602308,1719609087891,-1636.48,0.00025479,4]
[330602309,1719609087899,-2903.41,0.00025479,4]
[330602310,1719609087908,-500.0,0.00025479,4]
[330602311,1719609087917,-882.01,0.00025479,4]
[330602312,1719609087927,-1643.03,0.00025479,4]
[330602313,1719609087936,-23113.58,0.00025479,4]
[330602314,1719609087945,-628.52,0.00025479,4]
[330602315,1719609087954,-1414.53,0.00025479,4]
[330602316,1719609087963,-500.0,0.00025479,4]
[330602317,1719609087973,-500.0,0.00025479,4]
[330602318,1719609087981,-500.0,0.00025479,4]
[330602319,1719609087990,-11320.71,0.00025479,4]
[330602320,1719609087999,-555.85,0.00025479,4]
[330602321,1719609088009,-644.76,0.00025479,4]
[330602322,1719609088021,-585.25,0.00025479,4]
[330602323,1719609088030,-756.94,0.00025479,4]
[330602324,1719609088039,-1188.67,0.00025479,4]
[330602325,1719609088048,-788.02,0.00025479,4]
[330602326,1719609088059,-1280.69,0.00025479,4]
[330602327,1719609088069,-500.0,0.00025479,4]
[330602328,1719609088078,-2279.24,0.00025479,4]
[330602329,1719609088087,-500.0,0.00025479,4]
[330602330,1719609088101,-3712.0,0.00025479,4]
[330602331,1719609088111,-4032.61,0.00025479,4]
[330602332,1719609088119,-227.79,0.00025479,4]
[330602333,1719609088128,-1001.0,0.00025479,4]
[330602334,1719609088137,-2069.86,0.00025479,4]
[330602335,1719609088146,-5418.01,0.00025479,4]
[330602336,1719609088155,-826.19,0.00025479,4]
[330602337,1719609088164,-803.14,0.00025479,4]
[330602338,1719609088173,-939.69,0.00025479,4]
[330602339,1719609088183,-60694.4,0.00025479,4]
[330602340,1719609088192,-2175.07,0.00025479,4]
[330602341,1719609088201,-3733.28,0.00025479,4]
[330602342,1719609088210,-7121.33,0.00025479,4]
[330602343,1719609088220,-500.0,0.00025479,4]
[330602344,1719609088230,-521.59,0.00025479,4]
[330602345,1719609088239,-4094.82,0.00025479,4]
[330602346,1719609088247,-582.3,0.00025479,4]
[330602347,1719609088256,-834.09,0.00025479,4]
[330602348,1719609088266,-689.13,0.00025479,4]
[330602349,1719609088274,-1575.66,0.00025479,4]
[330602350,1719609088283,-1770.99,0.00025479,4]
[330602351,1719609088292,-12345.82,0.00025479,4]
[330602352,1719609088301,-651.08,0.00025479,4]
[330602353,1719609088310,-500.0,0.00025479,4]
[330602354,1719609088318,-1018.4,0.00025479,4]
[330602355,1719609088327,-500.0,0.00025479,4]
[330602356,1719609088336,-2468.56,0.00025479,4]
[330602357,1719609088345,-12723.98,0.00025479,4]
[330602358,1719609088354,-500.0,0.00025479,4]
[330602359,1719609088363,-1210.66,0.00025479,4]
[330602360,1719609088372,-500.0,0.00025479,2]
[330602361,1719609088381,-923.2,0.00025479,4]
[330602362,1719609088390,-2010.28,0.00025479,4]
[330602363,1719609088399,-4814.91,0.00025479,4]
[330602364,1719609088408,-11513.48,0.00025479,4]
[330602365,1719609088417,-506.2,0.00025479,4]
[330602366,1719609088426,-10418.44,0.00025479,4]
[330602367,1719609088435,-500.0,0.00025479,4]
[330602368,1719609088444,-500.0,0.00025479,4]
[330602369,1719609088454,-1813.93,0.00025479,4]
[330602370,1719609088463,-959.34,0.00025479,4]
[330602371,1719609088474,-655.11,0.00025479,4]
[330602372,1719609088483,-1894.29,0.00025479,4]
[330602373,1719609088493,-500.0,0.00025479,4]
[330602374,1719609088502,-1715.47,0.00025479,4]
[330602375,1719609088511,-500.0,0.00025479,4]
[330602376,1719609088520,-1262.66,0.00025479,4]
[330602377,1719609088530,-761.05,0.00025479,4]
[330602378,1719609088540,-535.3,0.00025479,4]
[330602379,1719609088549,-1055.6,0.00025479,4]
[330602380,1719609088559,-1710.79,0.00025479,4]
[330602381,1719609088569,-2194.15,0.00025479,4]
[330602382,1719609088579,-500.0,0.00025479,4]
[330602383,1719609088588,-979.7,0.00025479,4]
[330602384,1719609088597,-528.59,0.00025479,4]
[330602385,1719609088607,-628.71,0.00025479,4]
[330602386,1719609088726,-750.32,0.00025479,4]
[330602387,1719609088736,-500.0,0.00025479,4]
[330602388,1719609088746,-1021.86,0.00025479,4]
[330602389,1719609088756,-586.77,0.00025479,4]
[330602390,1719609088766,-500.0,0.00025479,4]
[330602391,1719609088775,-10772.11,0.00025479,4]
[330602392,1719609088785,-740.26,0.00025479,4]
[330602393,1719609088795,-1018.02,0.00025479,4]
[330602394,1719609088804,-3099.44,0.00025479,4]
[330602395,1719609088814,-669.76,0.00025479,4]
[330602396,1719609088823,-500.0,0.00025479,4]
[330602397,1719609088832,-600.27,0.00025479,4]
[330602398,1719609088842,-4038.76,0.00025479,4]
[330602399,1719609088851,-1461.16,0.00025479,4]
[330602400,1719609088860,-2850.21,0.00025479,4]
[330602401,1719609088869,-546.35,0.00025479,4]
[330602402,1719609088878,-500.0,0.00025479,4]
[330602403,1719609088887,-4987.38,0.00025479,4]
[330602404,1719609088896,-500.0,0.00025479,4]
[330602405,1719609088906,-3352.17,0.00025479,4]
[330602406,1719609088915,-621.88,0.00025479,4]
[330602407,1719609088924,-683.47,0.00025479,4]
[330602408,1719609088934,-1525.02,0.00025479,4]
[330602409,1719609088943,-23476.31,0.00025479,4]
[330602410,1719609088953,-500.0,0.00025479,4]
[330602411,1719609088962,-6462.45,0.00025479,4]
[330602412,1719609088972,-500.0,0.00025479,4]
[330602413,1719609088982,-9156.13,0.00025479,4]
[330602414,1719609088991,-1587.41,0.00025479,4]
[330602415,1719609089000,-500.0,0.00025479,4]
[330602416,1719609089013,-2718.89,0.00025479,4]
[330602417,1719609089023,-100000.0,0.00025501,2]
[330602418,1719609089032,-30000.0,0.00025501,2]
[330602419,1719609089041,-650.0,0.00025531,2]
[330602420,1719609089052,-6356.54,0.00025753,4]
[330602421,1719609089061,-500.0,0.00025753,2]
[330602422,1719609089071,-500.0,0.00025753,4]
[330602423,1719609089080,-1053.33,0.00025753,4]
[330602424,1719609089092,-500.0,0.00025753,4]
[330602425,1719609089101,-581.35,0.00025753,4]
[330602426,1719609089110,-303.42115623,0.00025753,4]
[330602427,1719609089119,-500.0,0.00025753,4]
[330602428,1719609089128,-2317.09,0.00025753,4]
[330602429,1719609089138,-922.96,0.00025753,4]
[330602430,1719609089148,-834.68,0.00025753,4]
[330602431,1719609089157,-500.0,0.00025753,4]
[330602432,1719609089166,-500.0,0.00025753,4]
[330602433,1719609089176,-623.93714456,0.00025753,4]
[330602434,1719609089186,-803.38,0.00025753,4]
[330602435,1719609089195,-500.0,0.00025753,4]
[330602436,1719609089205,-1513.65,0.00025753,4]
[330602437,1719609089214,-500.0,0.00025753,4]
[330602438,1719609089225,-969.26,0.00025753,4]
[330602439,1719609089235,-1279.12,0.00025753,4]
[330602440,1719609089244,-580.44,0.00025753,4]
[330602441,1719609089253,-750.55,0.00025753,4]
[330602442,1719609089263,-527.85,0.00025753,4]
[330602443,1719609089272,-762.9,0.00025753,4]
[330602444,1719609089281,-500.0,0.00025753,4]
[330602445,1719609089290,-500.0,0.00025753,4]
[330602446,1719609089299,-794.3,0.00025753,4]
[330602447,1719609089308,-500.0,0.00025753,4]
[330602448,1719609089317,-232.90799138,0.00025753,4]
[330602449,1719609089327,-526.04,0.00025753,4]
[330602450,1719609089336,-819.47,0.00025753,4]
[330602451,1719609089345,-905.98,0.00025753,4]
[330602452,1719609089355,-500.0,0.00025753,4]
[330602453,1719609089364,-476.24953152,0.00025753,4]
[330602454,1719609089373,-1589.77,0.00025753,4]
[330602455,1719609089383,-1414.16,0.00025753,4]
[330602456,1719609089391,-514.41,0.00025753,4]
[330602457,1719609089400,-500.0,0.00025753,4]
[330602458,1719609089409,-549.62,0.00025753,4]
[330602459,1719609089419,-1020.77,0.00025753,4]
[330602460,1719609089427,-2333.86,0.00025753,4]
[330602461,1719609089437,-718.41,0.00025753,4]
[330602462,1719609089446,-632.14,0.00025753,4]
[330602463,1719609089455,-2254.28,0.00025753,4]
[330602464,1719609089465,-1134.77,0.00025753,4]
[330602465,1719609089475,-500.0,0.00025753,4]
[330602466,1719609089485,-552.34,0.00025753,4]
[330602467,1719609089494,-655.59,0.00025753,4]
[330602468,1719609089503,-500.0,0.00025753,4]
[330602469,1719609089512,-500.0,0.00025753,4]
[330602470,1719609089521,-1584.44,0.00025753,4]
[330602471,1719609089530,-705.63,0.00025753,4]
[330602472,1719609089539,-992.69,0.00025753,4]
[330602473,1719609089547,-963.94,0.00025753,4]
[330602474,1719609089556,-2618.52,0.00025753,4]
[330602475,1719609089565,-775.03,0.00025753,4]
[330602476,1719609089575,-500.0,0.00025753,4]
[330602477,1719609089584,-500.0,0.00025753,4]
[330602478,1719609089593,-1047.09,0.00025753,4]
[330602479,1719609089602,-597.64,0.00025753,4]
[330602480,1719609089610,-500.0,0.00025753,4]
[330602481,1719609089619,-619.46,0.00025753,4]
[330602482,1719609089628,-1602.1,0.00025753,4]
[330602483,1719609089637,-500.0,0.00025753,4]
[330602484,1719609089647,-1252.86,0.00025753,4]
[330602485,1719609089656,-748.7,0.00025753,4]
[330602486,1719609089665,-725.68,0.00025753,4]
[330602487,1719609089674,-500.0,0.00025753,4]
[330602488,1719609089684,-3105.39,0.00025753,4]
[330602489,1719609089694,-500.0,0.00025753,4]
[330602490,1719609089703,-1391.86,0.00025753,4]
[330602491,1719609089712,-500.0,0.00025753,4]
[330602492,1719609089724,-1221.39,0.00025753,4]
[330602493,1719609089733,-598.89,0.00025753,4]
[330602494,1719609089743,-761.97,0.00025753,4]
[330602495,1719609089753,-500.0,0.00025753,4]
[330602496,1719609089762,-1916.95,0.00025753,4]
[330602497,1719609089774,-500.0,0.00025753,4]
[330602498,1719609089783,-911.28,0.00025753,4]
[330602499,1719609089793,-500.0,0.00025753,4]
[330602500,1719609089803,-500.0,0.00025753,4]
[330602501,1719609089812,-1274.5,0.00025753,2]
[330602502,1719609089821,-786.07,0.00025753,4]
[330602503,1719609089830,-3430.95,0.00025753,4]
[330602504,1719609089839,-2096.46,0.00025753,4]
[330602505,1719609089849,-1472.43,0.00025753,4]
[330602506,1719609089858,-500.0,0.00025753,4]
[330602507,1719609089868,-713.1,0.00025753,4]
[330602508,1719609089877,-1080.39,0.00025753,4]
[330602509,1719609089886,-32522.18,0.00025753,4]
[330602510,1719609089895,-2759.26,0.00025753,4]
[330602511,1719609089905,-1561.25,0.00025753,4]
[330602512,1719609089914,-1056.09,0.00025753,4]
[330602513,1719609089923,-626.89,0.00025753,4]
[330602514,1719609089932,-644.23,0.00025753,4]
[330602515,1719609089941,-919.74,0.00025753,4]
[330602516,1719609089950,-526.73,0.00025753,4]
[330602517,1719609089959,-500.0,0.00025753,4]
[330602518,1719609089970,-646.30229186,0.00025753,4]
[330602519,1719609089979,-900.52,0.00025753,4]
[330602520,1719609089989,-2915.15,0.00025753,4]
[330602521,1719609089998,-1075.26,0.00025753,4]
[330602522,1719609090009,-2606.56,0.00025753,4]
[330602523,1719609090020,-898.0,0.00025753,4]
[330602524,1719609090028,-1017.0,0.00025753,4]
[330602525,1719609090037,-500.0,0.00025753,4]
[330602526,1719609090047,-769.17,0.00025753,4]
[330602527,1719609090058,-724.43,0.00025753,4]
[330602528,1719609090067,-500.0,0.00025753,4]
[330602529,1719609090076,-1811.19,0.00025753,4]
[330602530,1719609090086,-500.0,0.00025753,4]
[330602531,1719609090100,-555.14,0.00025753,4]
[330602532,1719609090109,-745.75,0.00025753,4]
[330602533,1719609090118,-1060.47,0.00025753,4]
[330602534,1719609090127,-1646.45,0.00025753,4]
[330602535,1719609090136,-308.28355744,0.00025753,4]
[330602536,1719609090145,-561.23,0.00025753,4]
[330602537,1719609090154,-1636.48,0.00025753,4]
[330602538,1719609090163,-2903.41,0.00025753,4]
[330602539,1719609090173,-500.0,0.00025753,4]
[330602540,1719609090182,-882.01,0.00025753,4]
[330602541,1719609090191,-1643.03,0.00025753,4]
[330602542,1719609090200,-23113.58,0.00025753,4]
[330602543,1719609090209,-628.52,0.00025753,4]
[330602544,1719609090219,-1414.53,0.00025753,4]
[330602545,1719609090228,-500.0,0.00025753,4]
[330602546,1719609090237,-500.0,0.00025753,4]
[330602547,1719609090247,-500.0,0.00025753,4]
[330602548,1719609090256,-555.85,0.00025753,4]
[330602549,1719609090265,-11320.71,0.00025753,4]
[330602550,1719609090274,-644.76,0.00025753,4]
[330602551,1719609090283,-585.25,0.00025753,4]
[330602552,1719609090292,-756.94,0.00025753,4]
[330602553,1719609090301,-1188.67,0.00025753,4]
[330602554,1719609090310,-788.02,0.00025753,4]
[330602555,1719609090320,-500.0,0.00025753,4]
[330602556,1719609090329,-1280.69,0.00025753,4]
[330602557,1719609090338,-2279.24,0.00025753,4]
[330602558,1719609090347,-500.0,0.00025753,4]
[330602559,1719609090357,-3712.0,0.00025753,4]
[330602560,1719609090366,-4032.61,0.00025753,4]
[330602561,1719609090375,-227.79,0.00025753,4]
[330602562,1719609090385,-1001.0,0.00025753,4]
[330602563,1719609090394,-2069.86,0.00025753,4]
[330602564,1719609090403,-5418.01,0.00025753,4]
[330602565,1719609090412,-826.19,0.00025753,4]
[330602566,1719609090421,-803.14,0.00025753,4]
[330602567,1719609090431,-939.69,0.00025753,4]
[330602568,1719609090440,-60694.4,0.00025753,4]
[330602569,1719609090449,-2175.07,0.00025753,4]
[330602570,1719609090458,-3733.28,0.00025753,4]
[330602571,1719609090467,-7121.33,0.00025753,4]
[330602572,1719609090477,-500.0,0.00025753,4]
[330602573,1719609090486,-521.59,0.00025753,4]
[330602574,1719609090495,-4094.82,0.00025753,4]
[330602575,1719609090504,-582.3,0.00025753,4]
[330602576,1719609090513,-834.09,0.00025753,4]
[330602577,1719609090614,-689.13,0.00025753,4]
[330602578,1719609090632,-1575.66,0.00025753,4]
[330602579,1719609090642,-1770.99,0.00025753,4]
[330602580,1719609090651,-12345.82,0.00025753,4]
[330602581,1719609090660,-651.08,0.00025753,4]
[330602582,1719609090669,-500.0,0.00025753,4]
[330602583,1719609090679,-1018.4,0.00025753,4]
[330602584,1719609090688,-500.0,0.00025753,4]
[330602585,1719609090697,-2468.56,0.00025753,4]
[330602586,1719609090706,-12723.98,0.00025753,4]
[330602587,1719609090715,-500.0,0.00025753,4]
[330602588,1719609090725,-1210.66,0.00025753,4]
[330602589,1719609090734,-500.0,0.00025753,2]
[330602590,1719609090744,-923.2,0.00025753,4]
[330602591,1719609090753,-2010.28,0.00025753,4]
[330602592,1719609090762,-4814.91,0.00025753,4]
[330602593,1719609090771,-11513.48,0.00025753,4]
[330602594,1719609090780,-506.2,0.00025753,4]
[330602595,1719609090789,-10418.44,0.00025753,4]
[330602596,1719609090798,-500.0,0.00025753,4]
[330602597,1719609090807,-500.0,0.00025753,4]
[330602598,1719609090816,-1813.93,0.00025753,4]
[330602599,1719609090825,-959.34,0.00025753,4]
[330602600,1719609090834,-655.11,0.00025753,4]
[330602601,1719609090843,-1894.29,0.00025753,4]
[330602602,1719609090852,-500.0,0.00025753,4]
[330602603,1719609090861,-1715.47,0.00025753,4]
[330602604,1719609090870,-471.74233289,0.00025753,4]
[330602605,1719609090879,-1262.66,0.00025753,4]
[330602606,1719609090891,-761.05,0.00025753,4]
[330602607,1719609090900,-535.3,0.00025753,4]
[330602608,1719609090909,-1055.6,0.00025753,4]
[330602609,1719609090918,-1710.79,0.00025753,4]
[330602610,1719609090927,-2194.15,0.00025753,4]
[330602611,1719609090936,-500.0,0.00025753,4]
[330602612,1719609090945,-979.7,0.00025753,4]
[330602613,1719609090954,-528.59,0.00025753,4]
[330602614,1719609090963,-628.71,0.00025753,4]
[330602615,1719609090973,-750.32,0.00025753,4]
[330602616,1719609090982,-500.0,0.00025753,4]
[330602617,1719609090991,-1021.86,0.00025753,4]
[330602618,1719609091001,-586.77,0.00025753,4]
[330602619,1719609091011,-500.0,0.00025753,4]
[330602620,1719609091031,-10772.11,0.00025753,4]
[330602621,1719609091042,-740.26,0.00025753,4]
[330602622,1719609091051,-1018.02,0.00025753,4]
[330602623,1719609091061,-3099.44,0.00025753,4]
[330602624,1719609091071,-669.76,0.00025753,4]
[330602625,1719609091085,-500.0,0.00025753,4]
[330602626,1719609091095,-600.27,0.00025753,4]
[330602627,1719609091104,-4038.76,0.00025753,4]
[330602628,1719609091114,-2850.21,0.00025753,4]
[330602629,1719609091123,-1461.16,0.00025753,4]
[330602630,1719609091132,-546.35,0.00025753,4]
[330602631,1719609091141,-500.0,0.00025753,4]
[330602632,1719609091150,-4987.38,0.00025753,4]
[330602633,1719609091159,-500.0,0.00025753,4]
[330602634,1719609091168,-3352.17,0.00025753,4]
[330602635,1719609091176,-621.88,0.00025753,4]
[330602636,1719609091186,-683.47,0.00025753,4]
[330602637,1719609091196,-1525.02,0.00025753,4]
[330602638,1719609091206,-23476.31,0.00025753,4]
[330602639,1719609091215,-500.0,0.00025753,4]
[330602640,1719609091226,-6462.45,0.00025753,4]
[330602641,1719609091235,-500.0,0.00025753,4]
[330602642,1719609091245,-9156.13,0.00025753,4]
[330602643,1719609091254,-1587.41,0.00025753,4]
[330602644,1719609091263,-500.0,0.00025753,4]
[330602645,1719609091272,-2718.89,0.00025753,4]
[330602646,1719609091281,-449.45145023,0.00025779,2]
[330602647,1719609091290,-525.35039964,0.00025869,2]
[330602648,1719609091299,-154.80649189,0.00025869,2]
[330602649,1719609091308,-154.80649189,0.00025869,2]
[330602650,1719609091317,-154.80649189,0.00025869,2]
[330602651,1719609091327,-916.65609247,0.00025869,2]
[330602652,1719609091336,-525.35039964,0.00025869,2]
[330602653,1719609091345,-293.04302917,0.00025902,2]
[330602654,1719609091355,-293.04302917,0.00025902,2]
[330602655,1719609091364,-500.0,0.00025996,2]
[330602656,1719609091373,-500.0,0.00025996,2]
[330602657,1719609091382,-500.0,0.00025996,2]
[330602658,1719609091391,-449.16386107,0.00025996,2]
[330602659,1719609091400,-163.7343962,0.00026,2]